[Event "Marienbad B2-IM 2024"]
[Site "Marianske Lazne"]
[Date "2024.01.20"]
[Round "9.19"]
[White "Pisk, Petr"]
[Black "Kejna, Piotr"]
[Result "1/2-1/2"]
[ECO "B08"]
[WhiteElo "2295"]
[BlackElo "2269"]
[Annotator "ChessBase"]
[PlyCount "30"]
[EventDate "2024.01.10"]
[EventType "tourn"]
[EventCountry "CZE"]
[SourceTitle "playchess.com"]
[Source "ChessBase"]
[SourceQuality "1"]
[TimeControl "40/5400+30:1800+30"]

1. Nf3 {[%emt 0:00:30]} g6 {[%emt 0:01:17]} 2. d4 {[%emt 0:04:13]} Bg7 {[%emt 0:00:52]} 3. e4 {[%emt 0:04:10]} d6 {[%emt 0:00:46]} 4. h3 {[%emt 0:00:46]} Nf6 {[%emt 0:01:19]} 5. Nc3 {[%emt 0:01:05]} O-O {[%emt 0:00:16]} 6. Be2 {[%emt 0:00:24]} a6 {[%emt 0:00:35]} 7. a4 {[%emt 0:00:24]} b6 {[%emt 0:00:52]} 8. O-O {[%emt 0:01:16]} Bb7 {[%emt 0:00:18]} 9. e5 {[%emt 0:01:48]} dxe5 {[%emt 0:07:03]} 10. Nxe5 {[%emt 0:02:00]} Nbd7 {[%emt 0:08:13]} 11. Bf3 {[%emt 0:10:19]} Bxf3 {[%emt 0:02:52]} 12. Nxf3 {[%emt 0:03:16]} c5 {[%emt 0:05:05]} 13. Be3 {[%emt 0:04:08]} Qc7 {[%emt 0:01:49]} 14. Re1 {[%emt 0:01:09]} Rfd8 {[%emt 0:03:00]} 15. Qe2 {[%emt 0:00:52]} e6 {[%emt 0:01:54]} 1/2-1/2